bitfinex-derivatives/quotes_BTCF0:USTF0_20250930
["timestamp","ask_amount","ask_price","bid_price","bid_amount"]
[1759267636854,1.6559128,114430.0,114420.0,0.52231374]
[1759267638458,1.6559128,114430.0,114420.0,0.44380236]
[1759267639968,1.24643044,114430.0,114420.0,0.44380236]
[1759267640462,1.6559128,114430.0,114420.0,0.44380236]
[1759267641964,1.24631044,114430.0,114420.0,0.85328472]
[1759267642565,1.24631044,114430.0,114420.0,0.44380236]
[1759267643366,1.6557928,114430.0,114420.0,0.44380236]
[1759267644469,1.24631044,114430.0,114420.0,0.44380236]
[1759267644667,1.6557928,114430.0,114420.0,0.03432]
[1759267644868,1.6557928,114430.0,114420.0,0.52231374]
[1759267649869,0.1090966,114420.0,114410.0,0.52394374]
[1759267650071,0.4698966,114420.0,114410.0,0.52394374]
[1759267652974,0.45569183,114420.0,114410.0,0.52394374]
[1759267654167,1.26061183,114420.0,114410.0,0.52394374]
[1759267656476,1.26061183,114420.0,114410.0,0.44543236]
[1759267657074,0.89981183,114420.0,114410.0,0.44543236]
[1759267657275,1.26061183,114420.0,114410.0,0.55528689]
[1759267657775,1.26061183,114420.0,114410.0,0.52400075]
[1759267658173,1.26061183,114420.0,114410.0,0.11451839]
[1759267658373,1.26061183,114420.0,114410.0,0.52400075]
[1759267658576,1.26045183,114420.0,114410.0,0.52400075]
[1759267659566,1.26045183,114420.0,114410.0,0.44543236]
[1759267661773,0.45569183,114420.0,114410.0,0.44543236]
[1759267661972,1.26033183,114420.0,114410.0,0.44543236]
[1759267662277,0.45569183,114420.0,114410.0,0.44551989]
[1759267662576,1.26033183,114420.0,114410.0,0.44551989]
[1759267662877,0.89953183,114420.0,114410.0,0.44551989]
[1759267663378,0.89953183,114420.0,114410.0,0.52408828]
[1759267663676,0.89953183,114420.0,114410.0,0.44551989]
[1759267664674,0.89945183,114420.0,114410.0,0.44551989]
[1759267666077,0.89945183,114420.0,114410.0,0.52408828]
[1759267666275,1.27124172,114420.0,114410.0,0.07856839]
[1759267666473,2.07576172,114420.0,114410.0,0.10134839]
[1759267666673,1.66619183,114420.0,114410.0,0.10134839]
[1759267667375,2.07576172,114420.0,114410.0,0.10134839]
[1759267667676,2.06155599,114420.0,114410.0,0.10134839]
[1759267667873,2.13165552,114420.0,114410.0,0.10134839]
[1759267668679,2.13165552,114420.0,114410.0,0.02724839]
[1759267668880,2.13165552,114420.0,114410.0,0.00446839]
[1759267669579,0.0873842,114410.0,114400.0,0.02159004]
[1759267669769,1.69815409,114410.0,114400.0,0.02159004]
[1759267669967,1.2885842,114410.0,114400.0,0.02159004]
[1759267670971,1.2885442,114410.0,114400.0,0.02159004]
[1759267671672,0.4841442,114410.0,114400.0,0.02159004]
[1759267671876,0.9277442,114410.0,114400.0,0.10898184]
[1759267672077,0.1233442,114410.0,114400.0,0.10898184]
[1759267672278,0.9277442,114410.0,114400.0,0.10898184]
[1759267672873,0.9277442,114410.0,114400.0,0.53158173]
[1759267673074,0.1233442,114410.0,114400.0,0.53158173]
[1759267673374,0.9277042,114410.0,114400.0,0.53158173]
[1759267673575,0.1233442,114410.0,114400.0,0.53158173]
[1759267673771,0.9277042,114410.0,114400.0,0.53158173]
[1759267673971,0.9277042,114410.0,114400.0,0.12201184]
[1759267674471,0.9277042,114410.0,114400.0,0.53158173]
[1759267674676,0.1233442,114410.0,114400.0,0.53158173]
[1759267674985,0.9276642,114410.0,114400.0,0.53158173]
[1759267675878,0.1233442,114410.0,114400.0,0.53158173]
[1759267676078,0.9276242,114410.0,114400.0,0.53158173]
[1759267677183,0.1233442,114410.0,114400.0,0.53158173]
[1759267677385,0.9276242,114410.0,114400.0,0.53158173]
[1759267677886,0.1233442,114410.0,114400.0,0.53158173]
[1759267678283,0.9275842,114410.0,114400.0,0.53158173]
[1759267678885,0.1233442,114410.0,114400.0,0.53158173]
[1759267679188,0.1108242,114410.0,114400.0,1.00223626]
[1759267679387,0.0004,114410.0,114400.0,1.40223626]
[1759267679586,0.8042,114410.0,114400.0,1.29238173]
[1759267679786,0.8046,114410.0,114400.0,1.29238173]
[1759267679983,0.0004,114410.0,114400.0,1.29238173]
[1759267680487,0.1104153,114430.0,114420.0,0.1219966]
[1759267680679,0.9145753,114430.0,114420.0,0.59433725]
[1759267680879,0.9149753,114430.0,114420.0,0.59433725]
[1759267681277,0.9278953,114430.0,114420.0,0.50696065]
[1759267681483,1.2886953,114430.0,114420.0,0.49393065]
[1759267681886,0.9278953,114430.0,114420.0,0.49393065]
[1759267682990,0.9278953,114430.0,114420.0,0.08436076]
[1759267683491,0.9278153,114430.0,114420.0,0.08436076]
[1759267684090,0.9278153,114430.0,114420.0,0.18476726]
[1759267684390,0.9278153,114430.0,114420.0,0.54556726]
[1759267684782,0.1108153,114430.0,114420.0,0.95513715]
[1759267685184,0.9148553,114430.0,114420.0,0.97082984]
[1759267687999,0.9148553,114430.0,114420.0,0.56125995]
[1759267688191,0.9148553,114430.0,114420.0,0.97082984]
[1759267688588,0.9148553,114430.0,114420.0,0.95102984]
[1759267688889,1.2885753,114430.0,114420.0,0.08025345]
[1759267689494,1.69814519,114430.0,114420.0,0.08025345]
[1759267690000,1.69814519,114430.0,114420.0,0.06457744]
[1759267690586,1.2885753,114430.0,114420.0,0.00179]
[1759267691395,1.2885753,114430.0,114420.0,0.06457831]
[1759267691696,1.2885753,114430.0,114420.0,0.0645779]
[1759267692084,1.69814519,114430.0,114420.0,0.0627879]
[1759267693698,2.09814519,114430.0,114420.0,0.0627879]
[1759267695297,0.1233366,114420.0,114410.0,0.0843779]
[1759267695499,0.4841366,114420.0,114410.0,0.02159]
[1759267697101,1.2878566,114420.0,114410.0,0.02159]
[1759267699200,1.27365097,114420.0,114410.0,0.02159]
[1759267699402,1.27365097,114420.0,114410.0,0.10005345]
[1759267701510,0.46993097,114420.0,114410.0,0.10005345]
[1759267701697,1.27353097,114420.0,114410.0,0.10005345]
[1759267702304,1.27353097,114420.0,114410.0,0.02159]
[1759267704496,0.1220542,114410.0,114400.0,0.51101338]
[1759267704695,0.1220542,114410.0,114400.0,0.10144349]
[1759267704905,0.1220542,114410.0,114400.0,0.02298004]
[1759267705113,0.1220542,114410.0,114400.0,0.43254993]
[1759267706907,0.1220542,114410.0,114400.0,0.42134993]
[1759267708214,0.9254942,114410.0,114400.0,0.42134993]
[1759267708716,1.2862942,114410.0,114400.0,0.42134993]
[1759267709216,1.27208828,114410.0,114400.0,0.42134993]
[1759267709408,1.27208828,114410.0,114400.0,0.01178004]
[1759267709605,1.27208828,114410.0,114400.0,0.42134993]
[1759267711013,1.27208828,114410.0,114400.0,0.49989579]
[1759267711314,1.27208828,114410.0,114400.0,0.01178004]
[1759267711520,0.1220618,114400.0,114390.0,0.47824811]
[1759267711715,1.33763298,114410.0,114390.0,0.901568]
[1759267711910,0.02184,114400.0,114390.0,0.901568]
[1759267713020,0.1092318,114400.0,114390.0,0.901568]
[1759267713214,0.4700318,114400.0,114390.0,0.901568]
[1759267713807,0.4700318,114400.0,114390.0,0.56504387]
[1759267714213,0.4828618,114400.0,114390.0,0.55129387]
[1759267714706,1.2861418,114400.0,114390.0,0.55129387]
[1759267718223,1.2861418,114400.0,114390.0,0.44143934]
[1759267718521,0.4828618,114400.0,114390.0,0.44143934]
[1759267718719,1.2861018,114400.0,114390.0,0.44143934]
[1759267719322,1.2860218,114400.0,114390.0,0.44143934]
[1759267720823,0.4828618,114400.0,114390.0,0.44143934]
[1759267721325,1.2860218,114400.0,114390.0,0.45518934]
[1759267721724,0.4828618,114400.0,114390.0,0.45518934]
[1759267721925,1.2860218,114400.0,114390.0,0.45518934]
[1759267723028,0.4700318,114400.0,114390.0,0.45518934]
[1759267723327,1.2731518,114400.0,114390.0,0.45518934]
[1759267724227,1.2731518,114400.0,114390.0,0.45532035]
[1759267725328,0.4558249,114400.0,114390.0,0.45532035]
[1759267725531,1.2588649,114400.0,114390.0,0.45532035]
[1759267727932,1.26173524,114400.0,114390.0,0.56517488]
[1759267731533,1.26173524,114400.0,114390.0,0.4464309]
[1759267733033,1.26173524,114400.0,114390.0,0.52500974]
[1759267733737,0.45869524,114400.0,114390.0,0.52500974]
[1759267733938,1.26153524,114400.0,114390.0,0.52500974]
[1759267735332,1.24732781,114400.0,114390.0,0.52500974]
[1759267738735,0.44448781,114400.0,114390.0,0.52500974]
[1759267739035,1.24720781,114400.0,114390.0,0.52500974]
[1759267740132,0.44448781,114400.0,114390.0,0.52500974]
[1759267740333,1.65690871,114400.0,114390.0,0.52500974]
[1759267740530,2.05690871,114400.0,114390.0,0.52500974]
[1759267740732,2.05690871,114400.0,114390.0,0.03673]
[1759267741038,2.05690871,114400.0,114390.0,0.4464309]
[1759267741237,2.05690871,114400.0,114390.0,0.03673]
[1759267742833,2.05690871,114400.0,114390.0,0.4464309]
[1759267743640,1.25418871,114400.0,114390.0,0.4464309]
[1759267743841,2.05678871,114400.0,114390.0,0.4464309]
[1759267744138,2.05674871,114400.0,114390.0,0.03673]
[1759267744339,2.05674871,114400.0,114390.0,0.4464309]
[1759267744541,1.25418871,114400.0,114390.0,0.4464309]
[1759267744839,2.05674871,114400.0,114390.0,0.4464309]
[1759267745441,0.1101594,114390.0,114380.0,0.11472884]
[1759267745642,1.66897226,114390.0,114380.0,0.52442974]
[1759267746639,1.66897226,114390.0,114380.0,0.11472884]
[1759267746640,0.86645226,114390.0,114380.0,0.11472884]
[1759267746843,1.67326226,114390.0,114380.0,0.52442974]
[1759267747036,1.67326226,114390.0,114380.0,0.4458509]
[1759267747544,0.123087,114380.0,114370.0,0.02312]
[1759267747736,0.8935879,114380.0,114370.0,0.02312]
[1759267747932,0.8935879,114380.0,114370.0,0.13297453]
[1759267748139,0.87369484,114380.0,114370.0,0.13297453]
[1759267748339,0.88237531,114380.0,114370.0,0.54267543]
[1759267748541,1.68485531,114380.0,114370.0,0.54267543]
[1759267748942,0.88237531,114380.0,114370.0,0.13297453]
[1759267749140,1.68485531,114380.0,114370.0,0.13297453]
[1759267749933,0.88237531,114380.0,114370.0,0.13297453]
[1759267750140,1.68481531,114380.0,114370.0,0.13297453]
[1759267750847,0.88237531,114380.0,114370.0,0.13297453]
[1759267751048,1.68481531,114380.0,114370.0,0.02312]
[1759267751243,2.09451621,114380.0,114370.0,0.07854947]
[1759267751449,1.29207621,114380.0,114370.0,0.07854947]
[1759267751649,3.86739621,114380.0,114370.0,0.07854947]
[1759267752250,3.86743621,114380.0,114370.0,0.07854947]
[1759267754057,0.1101747,114370.0,114360.0,0.11637473]
[1759267754251,0.8935056,114370.0,114360.0,0.10334473]
[1759267754445,1.6958656,114370.0,114360.0,0.10334473]
[1759267754646,1.6958656,114370.0,114360.0,0.08022473]
[1759267755542,0.8935056,114370.0,114360.0,0.08022473]
[1759267755742,1.6958656,114370.0,114360.0,0.08022473]
[1759267756150,1.6958656,114370.0,114360.0,0.10334473]
[1759267756754,1.6958656,114370.0,114360.0,0.08022473]
[1759267756952,1.6958656,114370.0,114360.0,0.10334473]
[1759267757452,1.6958656,114370.0,114360.0,0.08022473]
[1759267757653,0.8935056,114370.0,114360.0,0.08022473]
[1759267757854,1.6958256,114370.0,114360.0,0.08022473]
[1759267758453,2.06171987,114370.0,114360.0,0.08022473]
[1759267759248,2.47142077,114370.0,114360.0,0.08022473]
[1759267760049,2.47142077,114370.0,114360.0,0.00167526]
[1759267760954,2.06171987,114370.0,114360.0,0.00167526]
[1759267761552,2.47142077,114370.0,114360.0,0.00167526]
[1759267764156,4.24462077,114370.0,114360.0,6e-08]
[1759267765156,4.24468593,114370.0,114360.0,6e-08]
[1759267765856,1.66916593,114370.0,114360.0,6e-08]
[1759267766058,4.24472593,114370.0,114360.0,6e-08]
[1759267770650,1.66916593,114370.0,114360.0,6e-08]
[1759267770949,4.24480593,114370.0,114360.0,6e-08]
[1759267772560,0.84976413,114370.0,114360.0,6e-08]
[1759267772861,3.83514503,114370.0,114360.0,6e-08]
[1759267773062,4.24484593,114370.0,114360.0,6e-08]
[1759267774961,1.66916593,114370.0,114360.0,6e-08]
[1759267775357,4.24480593,114370.0,114360.0,6e-08]
[1759267779464,3.84480593,114370.0,114360.0,6e-08]
[1759267779668,4.25450683,114370.0,114360.0,6e-08]
[1759267779967,3.84480593,114370.0,114360.0,6e-08]
[1759267781163,4.65450683,114370.0,114360.0,6e-08]
[1759267781460,4.24480593,114370.0,114360.0,6e-08]
[1759267781866,3.84480593,114370.0,114360.0,6e-08]
[1759267782267,3.86704964,114370.0,114360.0,6e-08]
[1759267782466,1.29140964,114370.0,114360.0,6e-08]
[1759267782666,3.86708964,114370.0,114360.0,6e-08]
[1759267784367,3.86807042,114370.0,114360.0,6e-08]
[1759267793276,3.89160518,114370.0,114360.0,6e-08]
[1759267794372,4.29160518,114370.0,114360.0,6e-08]
[1759267794572,0.1096674,114340.0,114330.0,0.0991532]
[1759267794779,1.23240511,114340.0,114330.0,0.0991532]
[1759267795077,3.80888511,114340.0,114330.0,0.0991532]
[1759267795475,1.23240511,114340.0,114330.0,0.0991532]
[1759267795672,3.80916511,114340.0,114330.0,0.0991532]
[1759267796082,3.80916511,114340.0,114330.0,0.0628332]
[1759267797371,3.87864233,114340.0,114330.0,0.0628332]
[1759267798276,1.30188233,114340.0,114330.0,0.0628332]
[1759267798477,3.87924233,114340.0,114330.0,0.0628332]
[1759267800777,1.30188233,114340.0,114330.0,0.0628332]
[1759267800978,3.87924233,114340.0,114330.0,0.0628332]
[1759267801177,0.1212153,114330.0,114320.0,0.0628332]
[1759267801483,0.89220659,114330.0,114320.0,0.0628332]
[1759267801679,0.89220659,114330.0,114320.0,0.0852932]
[1759267802381,0.109683,114320.0,114310.0,6.207e-05]
[1759267802678,1.69611429,114320.0,114310.0,6.207e-05]
[1759267803278,1.285923,114320.0,114310.0,6.207e-05]
[1759267803476,0.470483,114320.0,114310.0,6.207e-05]
[1759267803679,3.47035429,114320.0,114310.0,6.207e-05]
[1759267804278,3.060723,114320.0,114310.0,6.207e-05]
[1759267804480,0.88067429,114320.0,114310.0,6.207e-05]
[1759267804682,0.86645565,114320.0,114310.0,6.207e-05]
[1759267804882,3.45765565,114320.0,114310.0,6.207e-05]
[1759267805484,3.04746436,114320.0,114310.0,6.207e-05]
[1759267805686,3.45765565,114320.0,114310.0,6.207e-05]
[1759267806086,0.86645565,114320.0,114310.0,6.207e-05]
[1759267806287,3.04758436,114320.0,114310.0,6.207e-05]
[1759267806494,0.86645565,114320.0,114310.0,6.207e-05]
[1759267806681,3.45773565,114320.0,114310.0,6.207e-05]
[1759267807381,0.86645565,114320.0,114310.0,6.207e-05]
[1759267807582,3.45777565,114320.0,114310.0,6.207e-05]
[1759267807984,3.45773565,114320.0,114310.0,0.02252207]
[1759267808184,3.45773565,114320.0,114310.0,6.207e-05]
[1759267808784,0.86645565,114320.0,114310.0,6.207e-05]
[1759267808985,3.45761565,114320.0,114310.0,6.207e-05]
[1759267809682,2.64057565,114320.0,114310.0,0.03638207]
[1759267809883,3.45741565,114320.0,114310.0,0.43638207]
[1759267810189,3.45781565,114320.0,114310.0,0.43638207]
[1759267811180,0.86685565,114320.0,114310.0,0.43638207]
[1759267811388,3.45793565,114320.0,114310.0,0.43638207]
[1759267811588,0.45666436,114320.0,114310.0,0.43638207]
[1759267811788,3.45765565,114320.0,114310.0,0.43638207]
[1759267814085,3.04746436,114320.0,114310.0,0.43638207]
[1759267814285,3.45765565,114320.0,114310.0,0.43638207]
[1759267815491,3.04746436,114320.0,114310.0,0.43638207]
[1759267815691,3.45765565,114320.0,114310.0,0.43638207]
[1759267816091,3.45765565,114320.0,114310.0,0.40006207]
[1759267818398,3.45765565,114320.0,114310.0,0.42252207]
[1759267818598,3.45765565,114320.0,114310.0,0.40006207]
[1759267819800,3.66435565,114320.0,114310.0,0.40006207]
[1759267825410,3.66435565,114320.0,114310.0,0.42135207]
[1759267825604,3.66435565,114320.0,114310.0,0.43512207]
[1759267828801,3.66435565,114320.0,114310.0,0.42135207]
[1759267829001,3.66435565,114320.0,114310.0,0.40006207]
[1759267830708,3.66435565,114320.0,114310.0,0.42135207]
[1759267831010,3.66435565,114320.0,114310.0,0.40006207]
[1759267832713,3.66435565,114320.0,114310.0,0.42135207]
[1759267835517,3.66435565,114320.0,114310.0,0.40006207]
[1759267836419,3.66155565,114320.0,114310.0,0.42135207]
[1759267837824,1.07355565,114320.0,114310.0,0.43512207]
[1759267838117,3.66139565,114320.0,114310.0,0.43512207]
[1759267839414,3.66139565,114320.0,114310.0,0.03512207]
[1759267839616,3.45469565,114320.0,114310.0,0.03512207]
[1759267843618,0.86685565,114320.0,114310.0,0.03512207]
[1759267843919,3.45353565,114320.0,114310.0,0.03512207]
[1759267844112,3.04306436,114320.0,114310.0,0.03512207]
[1759267844313,3.86385558,114320.0,114310.0,0.03512207]
[1759267844720,3.04306436,114320.0,114310.0,0.03512207]
[1759267844920,1.27745558,114320.0,114310.0,0.03512207]
[1759267845122,3.86369558,114320.0,114310.0,0.03512207]
[1759267846010,3.86369558,114320.0,114310.0,6.207e-05]
[1759267846209,3.04290436,114320.0,114310.0,0.02135207]
[1759267846422,3.86369558,114320.0,114310.0,0.02135207]
[1759267848222,3.88730707,114320.0,114310.0,0.03439207]
[1759267848422,3.86369558,114320.0,114310.0,0.03439207]
[1759267851222,3.88733831,114320.0,114310.0,0.03439207]
[1759267851423,3.88733831,114320.0,114310.0,6.207e-05]
[1759267851923,3.06654709,114320.0,114310.0,6.207e-05]
[1759267852221,3.88733831,114320.0,114310.0,6.207e-05]
[1759267855530,3.88733831,114320.0,114310.0,0.02307207]
[1759267855927,3.88733831,114320.0,114310.0,6.207e-05]
[1759267857730,3.88733831,114320.0,114310.0,0.02307207]
[1759267858031,3.88733831,114320.0,114310.0,6.207e-05]
[1759267860836,3.88733831,114320.0,114310.0,0.02307207]
[1759267861134,3.88733831,114320.0,114310.0,6.207e-05]
[1759267862131,1.30109831,114320.0,114310.0,0.02307207]
[1759267862337,3.88641831,114320.0,114310.0,0.02307207]
[1759267863036,3.88641831,114320.0,114310.0,6.207e-05]
[1759267863237,1.30109831,114320.0,114310.0,0.02307207]
[1759267863437,3.88593831,114320.0,114310.0,0.02307207]
[1759267864937,3.88593831,114320.0,114310.0,6.207e-05]
[1759267867037,3.88593831,114320.0,114310.0,0.02307207]
[1759267867238,1.30109831,114320.0,114310.0,0.02307207]
[1759267867438,3.88537831,114320.0,114310.0,0.02307207]
[1759267867738,1.30109831,114320.0,114310.0,0.02307207]
[1759267867940,3.88537831,114320.0,114310.0,0.02307207]
[1759267868434,1.30109831,114320.0,114310.0,0.02307207]
[1759267868843,3.88521831,114320.0,114310.0,0.02307207]
[1759267869440,3.88517831,114320.0,114310.0,0.02307207]
[1759267870840,3.88517831,114320.0,114310.0,6.207e-05]
[1759267871643,3.88517831,114320.0,114310.0,0.02307207]
[1759267873542,3.88517831,114320.0,114310.0,6.207e-05]
[1759267879146,3.88433831,114320.0,114310.0,0.02307207]
[1759267879342,1.30109831,114320.0,114310.0,0.02307207]
[1759267879542,3.88425831,114320.0,114310.0,0.02307207]
[1759267879744,1.30109831,114320.0,114310.0,0.02307207]
[1759267879944,3.88421831,114320.0,114310.0,6.207e-05]
[1759267880948,3.88421831,114320.0,114310.0,0.02210207]
[1759267881550,1.30109831,114320.0,114310.0,0.02210207]
[1759267881751,3.88445831,114320.0,114310.0,0.02210207]
[1759267883450,3.88445831,114320.0,114310.0,6.207e-05]
[1759267884350,1.30109831,114320.0,114310.0,6.207e-05]
[1759267884547,1.30109831,114320.0,114310.0,0.02210207]
[1759267884748,3.88369831,114320.0,114310.0,0.02210207]
[1759267885054,1.30109831,114320.0,114310.0,0.02210207]
[1759267885258,3.88357831,114320.0,114310.0,0.02210207]
[1759267887054,3.88357831,114320.0,114310.0,0.03602207]
[1759267890765,3.88313831,114320.0,114310.0,0.03602207]
[1759267890956,3.06234709,114320.0,114310.0,0.03602207]
[1759267891163,3.88313831,114320.0,114310.0,0.03602207]
[1759267891765,3.88313831,114320.0,114310.0,6.207e-05]
[1759267891965,4.29353392,114320.0,114310.0,6.207e-05]
[1759267892165,3.88313831,114320.0,114310.0,6.207e-05]
[1759267896958,4.29353392,114320.0,114310.0,6.207e-05]
[1759267897265,0.109929,114300.0,114290.0,0.0359]
[1759267897465,2.10484022,114300.0,114290.0,0.0359]
[1759267897768,2.16103049,114300.0,114290.0,0.11444947]
[1759267898068,2.16110038,114300.0,114290.0,0.11444947]
[1759267898769,2.16110038,114300.0,114290.0,0.0359]
[1759267901167,0.1099366,114290.0,114280.0,0.11444947]
[1759267901470,0.87010723,114290.0,114280.0,0.11444947]
[1759267903370,0.87010723,114290.0,114280.0,0.0359]
[1759267904464,0.87010723,114290.0,114280.0,0.11444947]
[1759267905169,0.87010723,114290.0,114280.0,0.0359]
[1759267905568,0.0874844,114280.0,114270.0,0.09246947]
[1759267905772,2.10501562,114280.0,114270.0,0.11450947]
[1759267906278,1.69488969,114280.0,114270.0,0.11450947]
[1759267906676,0.88140969,114280.0,114270.0,0.11450947]
[1759267906876,1.69480969,114280.0,114270.0,0.11450947]
[1759267907565,1.69480969,114280.0,114270.0,0.07854947]
[1759267907566,1.69464969,114280.0,114270.0,0.07854947]
[1759267907770,1.68042744,114280.0,114270.0,0.11268947]
[1759267908072,1.26976215,114280.0,114270.0,0.11268947]
[1759267908274,1.68042744,114280.0,114270.0,0.11268947]
[1759267909078,1.68210744,114280.0,114270.0,0.11268947]
[1759267909276,1.66219588,114280.0,114270.0,0.11268947]
[1759267909781,1.25153059,114280.0,114270.0,0.11268947]
[1759267909975,1.66219588,114280.0,114270.0,0.11268947]
[1759267910170,1.66219588,114280.0,114270.0,0.07854947]
[1759267910970,0.1131021,114270.0,114260.0,0.188404]
[1759267911177,0.88456739,114270.0,114260.0,0.07854947]
[1759267911373,1.2908221,114270.0,114260.0,0.09983947]
[1759267911582,1.70148739,114270.0,114260.0,0.09993258]
[1759267911781,0.88023739,114270.0,114260.0,0.11278258]
[1759267912280,2.11232119,114270.0,114260.0,0.07864258]
[1759267912681,1.7016559,114270.0,114260.0,0.07864258]
[1759267912981,2.51232119,114270.0,114260.0,0.07864258]
[1759267913379,0.1087797,114260.0,114250.0,0.07874446]
[1759267913582,0.1087797,114260.0,114250.0,0.10003446]
[1759267913583,0.88024499,114260.0,114250.0,0.10003446]
[1759267913881,0.88024499,114260.0,114250.0,0.07874446]
[1759267915275,0.94950485,114260.0,114250.0,0.07874446]
[1759267915978,1.34950485,114260.0,114250.0,0.07874446]
[1759267916977,1.34950485,114260.0,114250.0,0.00010188]
[1759267917678,1.3352791,114260.0,114250.0,0.00010188]
[1759267918279,1.3352791,114260.0,114250.0,0.07874446]
[1759267918482,1.3352791,114260.0,114250.0,0.04495046]
[1759267918798,0.108795,114240.0,114230.0,0.14399453]
[1759267918974,1.68362369,114240.0,114230.0,0.14399453]
[1759267919675,0.86034369,114240.0,114230.0,0.14399453]
[1759267919878,1.68342369,114240.0,114230.0,0.14399453]
[1759267920582,1.68346369,114240.0,114230.0,0.14399453]
[1759267920783,0.86034369,114240.0,114230.0,0.14399453]
[1759267921186,1.68318369,114240.0,114230.0,0.14399453]
[1759267922185,0.86034369,114240.0,114230.0,0.14399453]
[1759267922378,3.45778369,114240.0,114230.0,0.14399453]
[1759267922686,3.0471184,114240.0,114230.0,0.03414]
[1759267922881,0.4496784,114240.0,114230.0,0.03414]
[1759267923181,1.06034369,114240.0,114230.0,0.03414]
[1759267923483,3.45810369,114240.0,114230.0,0.03414]
[1759267923880,3.0473184,114240.0,114230.0,0.03414]
[1759267924286,3.0487184,114240.0,114230.0,0.03414]
[1759267924487,0.0888784,114240.0,114230.0,0.44480529]
[1759267924688,0.9132384,114240.0,114230.0,0.44480529]
[1759267925182,0.0892784,114240.0,114230.0,0.44480529]
[1759267925388,0.9131984,114240.0,114230.0,0.44480529]
[1759267925682,0.0892784,114240.0,114230.0,0.44480529]
[1759267925887,0.9130384,114240.0,114230.0,0.44480529]
[1759267926087,0.9130384,114240.0,114230.0,0.03414]
[1759267926788,0.9129984,114240.0,114230.0,0.03414]
[1759267927287,0.9127584,114240.0,114230.0,0.03414]
[1759267927589,0.9127584,114240.0,114230.0,0.11266456]
[1759267927887,0.07505255,114240.0,114230.0,0.11266456]
[1759267928291,0.89849255,114240.0,114230.0,0.52332985]
[1759267928490,0.89841255,114240.0,114230.0,0.52332985]
[1759267929591,0.89841255,114240.0,114230.0,0.44480529]
[1759267929890,0.89837255,114240.0,114230.0,0.03414]
[1759267931092,1.25917255,114240.0,114230.0,0.14399453]
[1759267931290,1.25917255,114240.0,114230.0,0.55465982]
[1759267931993,1.25917255,114240.0,114230.0,0.14399453]
[1759267932801,0.89837255,114240.0,114230.0,0.14399453]
[1759267933096,0.845,114240.0,114230.0,0.14399453]
[1759267933292,0.932515,114240.0,114230.0,0.14399453]
[1759267933489,0.932515,114240.0,114230.0,0.55465982]
[1759267933995,0.932515,114240.0,114230.0,0.52338275]
[1759267934492,0.932515,114240.0,114230.0,0.11271746]
[1759267935685,0.930875,114240.0,114230.0,0.11271746]
[1759267937298,0.930875,114240.0,114230.0,0.03414]
[1759267937700,0.9166491,114240.0,114230.0,0.03414]
[1759267937995,0.0949691,114240.0,114230.0,0.84480529]
[1759267938298,0.908235,114240.0,114230.0,1.29312799]
[1759267938498,0.908635,114240.0,114230.0,1.29312799]
[1759267938695,0.908235,114240.0,114230.0,1.29312799]
[1759267938896,0.908635,114240.0,114230.0,1.29312799]
[1759267939102,0.908555,114240.0,114230.0,1.29312799]
[1759267939695,0.908155,114240.0,114230.0,1.62074297]
[1759267939890,0.908555,114240.0,114230.0,1.62074297]
[1759267940194,0.908275,114240.0,114230.0,1.62074297]
[1759267940500,0.087915,114240.0,114230.0,1.62074297]
[1759267940700,0.43671395,114260.0,114250.0,0.03594]
[1759267940901,0.89691395,114260.0,114250.0,0.52529598]
[1759267941099,0.89611395,114260.0,114250.0,0.52529598]
[1759267941305,0.89651395,114260.0,114250.0,0.44660529]
[1759267941502,0.07631395,114260.0,114250.0,0.44660529]
[1759267941696,0.89635395,114260.0,114250.0,0.52530491]
[1759267941901,0.89635395,114260.0,114250.0,0.53427226]
[1759267942796,0.89635395,114260.0,114250.0,0.52530491]
[1759267944803,0.07631395,114260.0,114250.0,0.52530491]
[1759267944998,0.89599395,114260.0,114250.0,0.52530491]
[1759267945200,0.89559395,114260.0,114250.0,0.52530491]
[1759267945396,0.89599395,114260.0,114250.0,0.52530491]
[1759267945702,0.89599395,114260.0,114250.0,0.61281231]
[1759267946702,0.07631395,114260.0,114250.0,0.62149379]
[1759267947001,0.87556064,114260.0,114250.0,0.90359417]
[1759267947303,0.05640064,114260.0,114250.0,1.01376113]
[1759267947497,0.87540064,114260.0,114250.0,1.01376113]
[1759267947698,0.86077738,114260.0,114250.0,1.01376113]
[1759267947900,0.86117738,114260.0,114250.0,1.01376113]
[1759267948708,0.86117738,114260.0,114250.0,0.51558844]
[1759267949002,0.86117738,114260.0,114250.0,1.01376113]
[1759267951612,0.86117738,114260.0,114250.0,0.60309584]
[1759267951799,0.86117738,114260.0,114250.0,1.01376113]
[1759267953609,1.05117738,114260.0,114250.0,1.01376113]
[1759267953809,0.03953738,114260.0,114250.0,1.49240162]
[1759267954110,0.76029738,114260.0,114250.0,1.30359417]
[1759267954304,0.08758471,114270.0,114260.0,0.1234397]
[1759267954507,0.90522471,114270.0,114260.0,0.89490499]
[1759267954803,0.90522471,114270.0,114260.0,1.00507195]
[1759267955407,0.90562471,114270.0,114260.0,1.00507195]
[1759267956103,0.90522471,114270.0,114260.0,1.00507195]
[1759267956304,0.90562471,114270.0,114260.0,1.00507195]
[1759267956505,0.88571422,114270.0,114260.0,1.00507195]
[1759267957204,0.06807422,114270.0,114260.0,1.00507195]
[1759267957405,0.88540293,114270.0,114260.0,1.00507195]
[1759267957708,0.06816293,114270.0,114260.0,1.00507195]
[1759267957911,0.72144293,114270.0,114260.0,1.40507195]
[1759267958105,0.72104293,114270.0,114260.0,1.40507195]
[1759267958305,0.06816293,114270.0,114260.0,1.40507195]
[1759267958504,0.56580293,114270.0,114260.0,1.40507195]
[1759267958700,0.49812871,114270.0,114260.0,1.40507195]
[1759267959206,0.58562071,114270.0,114260.0,1.40507195]
[1759267959409,0.58562071,114270.0,114260.0,1.00507195]
[1759267960409,0.00048871,114270.0,114260.0,1.00507195]
[1759267960911,0.58546071,114270.0,114260.0,1.00507195]
[1759267961105,0.58506071,114270.0,114260.0,1.00507195]
[1759267961306,0.58546071,114270.0,114260.0,1.00507195]
[1759267961814,0.49796871,114270.0,114260.0,1.00507195]
[1759267962314,0.08749,114280.0,114260.0,1.00507195]
[1759267962315,0.08749,114280.0,114270.0,0.1234321]
[1759267962614,0.90337,114280.0,114270.0,1.38416658]
[1759267962815,0.90377,114280.0,114270.0,1.38416658]
[1759267963407,0.90385203,114280.0,114270.0,1.38416658]
[1759267963710,0.08797203,114280.0,114270.0,1.38416658]
[1759267964116,0.85585203,114280.0,114270.0,1.38416658]
[1759267965215,0.85585203,114280.0,114270.0,1.30556268]
[1759267965618,0.85585203,114280.0,114270.0,1.38416658]
[1759267965811,0.81552203,114280.0,114270.0,1.30556268]
[1759267966113,0.81512203,114280.0,114270.0,1.70556268]
[1759267966417,0.81552203,114280.0,114270.0,1.8152326]
[1759267968017,0.81552203,114280.0,114270.0,1.70506564]
[1759267968817,0.00048203,114280.0,114270.0,1.70506564]
[1759267969013,0.0874819,114290.0,114280.0,0.1241339]
[1759267969221,0.9019219,114290.0,114280.0,1.38438936]
[1759267969517,0.9018819,114290.0,114280.0,1.38438936]
[1759267970920,0.0874819,114290.0,114280.0,1.38438936]